lending/lending_fUSD_20240605
["ID","MTS","AMOUNT","RATE_DAILY","PERIOD"]
[328612748,1717609848688,-156.2601336,0.00029858,2]
[328612749,1717609848701,-1043.24391385,0.00029858,2]
[328612750,1717609848714,-155.78402466,0.00029858,2]
[328612751,1717609848726,-275.02891786,0.00029858,2]
[328612752,1717609848737,-480.07899143,0.00029858,2]
[328612753,1717609848750,-187.46921704,0.00029858,2]
[328612754,1717609848766,-688.181864,0.00029858,2]
[328612755,1717609848778,-238.00596447,0.00029858,2]
[328612756,1717609848791,-3890.25994623,0.00029858,2]
[328612757,1717609848804,-3801.41790002,0.00029858,2]
[328612758,1717609848814,-241.39477687,0.00029858,2]
[328612759,1717609848824,-1275.18335769,0.00029858,2]
[328612760,1717609848835,-578.92749038,0.00029858,7]
[328612761,1717609848846,-155.0,0.00029858,2]
[328612762,1717609848858,-159.08875965,0.00029858,2]
[328612763,1717609848869,-156.46779989,0.00029858,7]
[328612764,1717609848879,-67284.35095089,0.00029858,2]
[328612765,1717609848891,-200.0,0.00029858,2]
[328612766,1717609848902,-224.99281109,0.00029858,2]
[328612767,1717609848913,-718.38,0.00029858,4]
[328612768,1717609848925,-1862.97,0.00029858,4]
[328612769,1717609848937,-500.0,0.00029858,4]
[328612770,1717609848946,-762.7,0.00029858,4]
[328612771,1717609848956,-500.0,0.00029858,4]
[328612772,1717609848967,-500.0,0.00029858,4]
[328612773,1717609848978,-1107.62,0.00029858,4]
[328612774,1717609848989,-500.0,0.00029858,4]
[328612775,1717609848999,-500.0,0.00029858,4]
[328612776,1717609849015,-1745.49,0.00029858,4]
[328612777,1717609849026,-500.0,0.00029858,4]
[328612778,1717609849036,-241.86124411,0.00029859,2]
[328612779,1717609849046,-235.71674647,0.00029859,2]
[328612780,1717609849056,-1560.11173798,0.00029859,15]
[328612781,1717609849066,-150.0,0.00029859,7]
[328612782,1717609849076,-150.0,0.00029859,7]
[328612783,1717609849086,-150.0,0.00029859,7]
[328612784,1717609849097,-150.0,0.00029859,7]
[328612785,1717609849106,-718.38,0.00029859,4]
[328612786,1717609849117,-718.38,0.00029859,4]
[328612787,1717609849127,-718.38,0.00029859,4]
[328612788,1717609849137,-718.38,0.00029859,4]
[328612789,1717609849147,-718.38,0.00029859,4]
[328612790,1717609849157,-718.38,0.00029859,4]
[328612791,1717609849167,-718.38,0.00029859,4]
[328612792,1717609849181,-718.38,0.00029859,4]
[328612793,1717609849191,-718.38,0.00029859,4]
[328612794,1717609849201,-718.38,0.00029859,4]
[328612795,1717609849211,-718.38,0.00029859,4]
[328612796,1717609849220,-718.38,0.00029859,4]
[328612797,1717609849232,-718.56999366,0.00029859,4]
[328612798,1717609849242,-1862.97,0.00029859,4]
[328612799,1717609849252,-1862.97,0.00029859,4]
[328612800,1717609849267,-1862.97,0.00029859,4]
[328612801,1717609849277,-1862.97,0.00029859,4]
[328612802,1717609849288,-1862.97,0.00029859,4]
[328612803,1717609849299,-1862.97,0.00029859,4]
[328612804,1717609849310,-1862.97,0.00029859,4]
[328612805,1717609849320,-1862.97,0.00029859,4]
[328612806,1717609849330,-1862.97,0.00029859,4]
[328612807,1717609849341,-1862.97,0.00029859,4]
[328612808,1717609849351,-1862.97,0.00029859,4]
[328612809,1717609849362,-1862.97,0.00029859,4]
[328612810,1717609849372,-1863.1828,0.00029859,4]
[328612811,1717609849382,-500.0,0.00029859,4]
[328612812,1717609849393,-500.0,0.00029859,4]
[328612813,1717609849403,-500.0,0.00029859,4]
[328612814,1717609849414,-500.0,0.00029859,4]
[328612815,1717609849424,-500.0,0.00029859,4]
[328612816,1717609849434,-500.0,0.00029859,4]
[328612817,1717609849445,-449.65445619,0.00029859,4]
[328612818,1717609849455,-762.7,0.00029859,4]
[328612819,1717609849465,-762.7,0.00029859,4]
[328612820,1717609849476,-762.7,0.00029859,4]
[328612821,1717609849486,-762.7,0.00029859,4]
[328612822,1717609849496,-762.7,0.00029859,4]
[328612823,1717609849509,-762.7,0.00029859,4]
[328612824,1717609849520,-762.7,0.00029859,4]
[328612825,1717609849530,-762.7,0.00029859,4]
[328612826,1717609849540,-762.7,0.00029859,4]
[328612827,1717609849551,-762.7,0.00029859,4]
[328612828,1717609849561,-762.7,0.00029859,4]
[328612829,1717609849571,-762.7,0.00029859,4]
[328612830,1717609849582,-762.8798951,0.00029859,4]
[328612831,1717609849592,-500.0,0.00029859,4]
[328612832,1717609849602,-500.0,0.00029859,4]
[328612833,1717609849612,-500.0,0.00029859,4]
[328612834,1717609849623,-531.31498791,0.00029859,4]
[328612835,1717609849634,-500.0,0.00029859,4]
[328612836,1717609849644,-500.0,0.00029859,4]
[328612837,1717609849654,-500.0,0.00029859,4]
[328612838,1717609849664,-500.0,0.00029859,4]
[328612839,1717609849675,-500.0,0.00029859,4]
[328612840,1717609849685,-165.64,0.00029859,4]
[328612841,1717609849696,-1107.62,0.00029859,4]
[328612842,1717609849707,-1107.62,0.00029859,4]
[328612843,1717609849717,-1107.62,0.00029859,4]
[328612844,1717609849728,-1107.62,0.00029859,4]
[328612845,1717609849738,-1107.62,0.00029859,4]
[328612846,1717609849749,-1107.62,0.00029859,4]
[328612847,1717609849764,-1107.62,0.00029859,4]
[328612848,1717609849775,-1107.62,0.00029859,4]
[328612849,1717609849785,-1107.62,0.00029859,4]
[328612850,1717609849796,-1107.62,0.00029859,4]
[328612851,1717609849807,-1107.62,0.00029859,4]
[328612852,1717609849817,-1107.62,0.00029859,4]
[328612853,1717609849828,-1107.73241907,0.00029859,4]
[328612854,1717609849838,-500.0,0.00029859,4]
[328612855,1717609849849,-500.0,0.00029859,4]
[328612856,1717609849859,-332.6098876,0.00029859,4]
[328612857,1717609849870,-500.0,0.00029859,4]
[328612858,1717609849881,-500.0,0.00029859,4]
[328612859,1717609849891,-500.0,0.00029859,4]
[328612860,1717609849902,-500.0,0.00029859,4]
[328612861,1717609849912,-611.59951085,0.00029859,4]
[328612862,1717609849923,-1745.49,0.00029859,4]
[328612863,1717609849933,-1745.49,0.00029859,4]
[328612864,1717609849944,-1745.49,0.00029859,4]
[328612865,1717609849955,-1745.49,0.00029859,4]
[328612866,1717609849965,-1745.49,0.00029859,4]
[328612867,1717609849975,-1745.49,0.00029859,4]
[328612868,1717609849986,-1745.49,0.00029859,4]
[328612869,1717609850171,-1745.49,0.00029859,4]
[328612870,1717609850181,-1745.49,0.00029859,4]
[328612871,1717609850193,-1745.49,0.00029859,4]
[328612872,1717609850203,-1745.49,0.00029859,4]
[328612873,1717609850215,-1745.49,0.00029859,4]
[328612874,1717609850226,-1745.58036628,0.00029859,4]
[328612875,1717609850235,-500.0,0.00029859,4]
[328612876,1717609850244,-500.0,0.00029859,4]
[328612877,1717609850254,-500.0,0.00029859,4]
[328612878,1717609850268,-500.0,0.00029859,4]
[328612879,1717609850279,-500.0,0.00029859,4]
[328612880,1717609850288,-500.0,0.00029859,4]
[328612881,1717609850297,-500.0,0.00029859,4]
[328612882,1717609850307,-500.0,0.00029859,4]
[328612883,1717609850316,-500.0,0.00029859,4]
[328612884,1717609850326,-176.76919944,0.00029859,4]
[328612885,1717609850335,-4568647.87,0.0002986,5]
[328612886,1717609850344,-156.1275,0.0002986,7]
[328612887,1717609850353,-156.1275,0.0002986,7]
[328612888,1717609850363,-151.0,0.0002986,7]
[328612889,1717609850372,-151.0,0.0002986,7]
[328612890,1717609850381,-500.0,0.00029863,2]
[328612891,1717609850391,-500.0,0.00029863,2]
[328612892,1717609850401,-500.0,0.00029863,2]
[328612893,1717609850410,-500.0,0.00029863,2]
[328612894,1717609850419,-500.0,0.00029863,2]
[328612895,1717609850428,-500.0,0.00029863,2]
[328612896,1717609850437,-382.53251882,0.00029863,2]
[328612897,1717609850446,-500.0,0.00029863,2]
[328612898,1717609850455,-500.0,0.00029863,2]
[328612899,1717609850464,-5800.0,0.00029866,2]
[328612900,1717609850474,-4081.17041738,0.00029868,2]
[328612901,1717609850483,-150.0,0.00029872,2]
[328612902,1717609850493,-5800.0,0.00029875,2]
[328612903,1717609850502,-300.0,0.00029882,2]
[328612904,1717609850513,-5800.0,0.00029883,2]
[328612905,1717609850522,-150.0,0.00029883,2]
[328612906,1717609850531,-604.33526767,0.00029889,20]
[328612907,1717609850540,-5800.0,0.00029892,2]
[328612908,1717609850553,-150.0,0.00029894,2]
[328612909,1717609850562,-153.05703102,0.00029898,2]
[328612910,1717609850571,-43286.7092808,0.000299,2]
[328612911,1717609850581,-250.0,0.000299,4]
[328612912,1717609850590,-2000.0,0.000299,2]
[328612913,1717609850599,-155.0,0.000299,2]
[328612914,1717609850608,-2247.36126855,0.000299,3]
[328612915,1717609850618,-351.07982111,0.000299,2]
[328612916,1717609850627,-172.00776655,0.000299,2]
[328612917,1717609850636,-4081.17041738,0.000299,2]
[328612918,1717609850646,-5800.0,0.000299,2]
[328612919,1717609850655,-1161.01414943,0.000299,15]
[328612920,1717609850665,-153.02247621,0.000299,2]
[328612921,1717609850674,-240.06048357,0.000299,15]
[328612922,1717609850684,-238.06581424,0.000299,7]
[328612923,1717609850693,-238.06581424,0.000299,7]
[328612924,1717609850703,-989.241552,0.000299,2]
[328612925,1717609850712,-238.06581424,0.000299,7]
[328612926,1717609850722,-238.06581424,0.000299,7]
[328612927,1717609850731,-238.06581424,0.000299,7]
[328612928,1717609850741,-238.06581424,0.000299,7]
[328612929,1717609850749,-238.06581424,0.000299,7]
[328612930,1717609850762,-238.06581424,0.000299,7]
[328612931,1717609850771,-238.06581424,0.000299,7]
[328612932,1717609850780,-238.06581424,0.000299,7]
[328612933,1717609850790,-238.06581424,0.000299,7]
[328612934,1717609850799,-238.06581424,0.000299,7]
[328612935,1717609850808,-238.06581424,0.000299,7]
[328612936,1717609850817,-238.06581424,0.000299,7]
[328612937,1717609850826,-238.06581424,0.000299,7]
[328612938,1717609850835,-238.06581424,0.000299,7]
[328612939,1717609850844,-238.06581424,0.000299,7]
[328612940,1717609850853,-238.06581424,0.000299,7]
[328612941,1717609850863,-238.06581424,0.000299,7]
[328612942,1717609850872,-238.56,0.000299,7]
[328612943,1717609850881,-952.33825696,0.000299,7]
[328612944,1717609850891,-952.33825696,0.000299,7]
[328612945,1717609850900,-952.33825696,0.000299,7]
[328612946,1717609850909,-952.33825696,0.000299,7]
[328612947,1717609850918,-952.33825696,0.000299,7]
[328612948,1717609850928,-952.33825696,0.000299,7]
[328612949,1717609850937,-952.33825696,0.000299,7]
[328612950,1717609850947,-952.33825696,0.000299,7]
[328612951,1717609850956,-952.33825696,0.000299,7]
[328612952,1717609850966,-952.33825696,0.000299,7]
[328612953,1717609850976,-952.33825696,0.000299,7]
[328612954,1717609850986,-952.33825696,0.000299,7]
[328612955,1717609850996,-952.33825696,0.000299,7]
[328612956,1717609851005,-952.33825696,0.000299,7]
[328612957,1717609851017,-952.33825696,0.000299,7]
[328612958,1717609851026,-952.33825696,0.000299,7]
[328612959,1717609851036,-952.33825696,0.000299,7]
[328612960,1717609851045,-952.33825696,0.000299,7]
[328612961,1717609851055,-952.33825696,0.000299,7]
[328612962,1717609851064,-952.83,0.000299,7]
[328612963,1717609851073,-150.0,0.000299,6]
[328612964,1717609851082,-325.27729568,0.000299,2]
[328612965,1717609851092,-150.0,0.000299,6]
[328612966,1717609851101,-1703.52938245,0.000299,2]
[328612967,1717609851110,-7445.49564346,0.000299,2]
[328612968,1717609851119,-213.10576096,0.000299,2]
[328612969,1717609851129,-261.99871468,0.000299,2]
[328612970,1717609851138,-154.21013298,0.00029932,2]
[328612971,1717609851149,-100881.7861893,0.00029979,2]
[328612972,1717609851158,-104820.1783164,0.00029979,2]
[328612973,1717609851168,-108758.5704436,0.00029979,2]
[328612974,1717609851180,-112696.9625707,0.00029979,2]
[328612975,1717609851192,-116635.3546978,0.00029979,2]
[328612976,1717609851201,-365.5,0.0002998,15]
[328612977,1717609851211,-248.72,0.0002998,15]
[328612978,1717609851221,-157.54408062,0.00029989,7]
[328612979,1717609851231,-362.0,0.0002999,15]
[328612980,1717609851241,-245.0,0.0002999,15]
[328612981,1717609851250,-157.14449764,0.0002999,2]
[328612982,1717609851263,-66409.19959044,0.0002999,5]
[328612983,1717609851273,-89308.87360813,0.0002999,3]
[328612984,1717609851282,-61811.28987215,0.0002999,2]
[328612985,1717609851292,-194.0,0.0002999,2]
[328612986,1717609851301,-2712.48086,0.0002999,2]
[328612987,1717609851311,-155.4300837,0.00029996,2]
[328612988,1717609851320,-100550.36463049,0.00029996,2]
[328612989,1717609851330,-235.094839,0.00029996,7]
[328612990,1717609851339,-156.415971,0.00029998,2]
[328612991,1717609851348,-177.29305838,0.00029998,2]
[328612992,1717609851358,-5783.46368518,0.00029998,2]
[328612993,1717609851367,-200.26393988,0.00029998,2]
[328612994,1717609851377,-19850.38330922,0.00029999,5]
[328612995,1717609851387,-316.24883242,0.00029999,2]
[328612996,1717609851396,-281.47943787,0.00029999,2]
[328612997,1717609851406,-15811.17023694,0.00029999,6]
[328612998,1717609851415,-10724.75666232,0.00029999,2]
[328612999,1717609851424,-47403.33820637,0.00029999,2]
[328613000,1717609851434,-156.1275,0.00029999,7]
[328613001,1717609851443,-156.1275,0.00029999,7]
[328613002,1717609851453,-2758.0,0.0003,2]
[328613003,1717609851462,-4591.07915442,0.0003,5]
[328613004,1717609851471,-733107.08263074,0.0003,2]
[328613005,1717609851660,2551.85569516,0.00016796,2]
[328613006,1717609855519,947.22670795,0.00022394,2]
[328613007,1717609859080,226.57668191,0.00022394,2]
[328613008,1717609861553,155.0,0.00022394,2]
[328613009,1717609865568,301.85569516,0.00016796,2]
[328613010,1717609875505,155.0,0.00022394,2]
[328613011,1717609875745,2423.53435742,0.00022394,2]
[328613012,1717609875776,137934.94921465,0.00022394,2]
[328613013,1717609881102,226.57668191,0.00022499,2]
[328613014,1717609889400,957.32584388,0.00015956,2]
[328613015,1717609889730,3723.44995875,0.00016796,2]
[328613016,1717609899085,226.57668191,0.00022499,2]
[328613019,1717610145742,690.0,0.00033682,30]
[328613021,1717610402349,1000.0,0.00033654,30]
[328613022,1717610402502,1000.0,0.00033654,30]
[328613023,1717610403695,1000.0,0.00033654,30]
[328613024,1717610403736,856.73701484,0.00033654,30]
[328613025,1717610404740,1000.0,0.00033654,30]
[328613026,1717610405982,1000.0,0.00033654,30]
[328613027,1717610407141,1000.0,0.00033654,30]
[328613028,1717610408274,1000.0,0.00033654,30]
[328613029,1717610409446,1000.0,0.00033654,30]
[328613030,1717610410609,979.0986343,0.00033654,30]
[328613031,1717610460621,1000.0,0.00033654,30]
[328613032,1717610465716,1000.0,0.00033654,30]
[328613033,1717610488375,1000.0,0.00033654,30]
[328613034,1717610500521,1000.0,0.00033654,60]
[328613035,1717610512624,1000.0,0.00033654,30]
[328613036,1717610524751,1000.0,0.00033654,30]
[328613037,1717610536891,1000.0,0.00033654,30]
[328613038,1717610549047,1000.0,0.00033654,60]
[328613039,1717610559124,1888.3,0.00033654,30]
[328613040,1717610561392,1000.0,0.00033654,60]
[328613041,1717610573470,1000.0,0.00033654,60]
[328613042,1717610585647,1000.0,0.00033656,60]
[328613043,1717610598663,1000.0,0.00033656,60]
[328613044,1717610609858,1000.0,0.00033656,60]
[328613047,1717610622021,1000.0,0.00033656,30]
[328613048,1717610634161,1000.0,0.00033656,60]
[328613049,1717610646357,1000.0,0.00033656,60]
[328613050,1717610658794,1000.0,0.00033656,60]
[328613051,1717610670619,1000.0,0.00033656,60]
[328613052,1717610682824,1000.0,0.00033656,30]
[328613053,1717610694904,1000.0,0.00033656,60]
[328613054,1717610707048,1000.0,0.00033656,30]
[328613055,1717610716931,1037.0,0.00033656,30]
[328613056,1717610719221,1000.0,0.00033656,60]
[328613057,1717610727544,1037.0,0.00033656,30]
[328613058,1717610731333,1000.0,0.00033656,60]
[328613059,1717610738226,1037.0,0.00033656,30]
[328613060,1717610743523,1000.0,0.00033656,30]
[328613061,1717610745193,690.0,0.00033656,30]
[328613062,1717610748931,1037.0,0.00033656,30]
[328613063,1717610759597,1037.0,0.00033656,30]
[328613064,1717610767770,859.92,0.00033656,30]
[328613065,1717610770302,1037.0,0.00033656,30]
[328613066,1717610781001,1037.0,0.00033656,30]
[328613067,1717610791902,1037.0,0.00033656,30]
[328613068,1717610802550,1037.0,0.00033656,30]
[328613069,1717610813188,1116.30233738,0.00033656,30]
[328613070,1717610839114,-7253.99630882,0.00017259,2]
[328613071,1717610839135,-249.93,0.00020731,2]
[328613072,1717610839158,-8813.92644023,0.00022499,2]
[328613073,1717610839179,-167.22,0.00022908,2]
[328613074,1717610839199,-254.33,0.00024384,2]
[328613075,1717610839219,-250.0,0.000247,7]
[328613076,1717610839239,-150.99,0.00024799,2]
[328613077,1717610839259,-499.99,0.00024799,2]
[328613078,1717610839280,-1250.0,0.00025,2]
[328613079,1717610839301,-1728.96439159,0.00025241,2]
[328613080,1717610839322,-563.08,0.00025874,2]
[328613081,1717610839345,-624.1122,0.00025882,2]
[328613082,1717610839365,-2010.60105363,0.000272,2]
[328613083,1717610839385,-262.67,0.00027589,2]
[328613084,1717610839406,-412.25,0.00027667,2]
[328613085,1717610839428,-250.0,0.00027753,2]
[328613086,1717610839449,-1000.0,0.00027944,2]
[328613087,1717610839470,-563.08,0.00028138,2]
[328613088,1717610839489,-171.91,0.00028681,2]
[328613089,1717610839510,-500.0,0.000288,7]
[328613090,1717610839534,-303.57815935,0.00029177,2]
[328613091,1717610839555,-226.57269903,0.000295,3]
[328613092,1717610839578,-1010.1,0.000295,2]
[328613093,1717610839602,-1010.1,0.000295,2]
[328613094,1717610839622,-314.84,0.000295,2]
[328613095,1717610839642,-314.84,0.000295,2]
[328613096,1717610839662,-200.0,0.000296,2]
[328613097,1717610839683,-293.2509,0.000296,2]
[328613098,1717610839703,-500.0,0.000296,2]
[328613099,1717610839724,-9855.92684739,0.00029677,3]
[328613100,1717610849088,-209.34589343,0.00020631,2]
[328613101,1717610849111,-742.92802448,0.00029677,3]
[328613102,1717610849132,-11653.58057379,0.00029699,2]
[328613103,1717610849152,-4000.0,0.000297,2]
[328613104,1717610849172,-4000.0,0.000297,2]
[328613105,1717610849192,-4000.0,0.000297,2]
[328613106,1717610849211,-4000.0,0.000297,2]
[328613107,1717610849230,-4000.0,0.000297,2]
[328613108,1717610849249,-300.0,0.00029734,2]
[328613109,1717610849268,-160.0,0.00029791,2]
[328613110,1717610849288,-160.0,0.000298,2]
[328613111,1717610849308,-9839.0,0.000298,5]
[328613112,1717610849328,-200.43574657,0.00029807,2]
[328613113,1717610849353,-739.10021789,0.0002983,2]
[328613114,1717610849375,-739.10021788,0.0002984,2]
[328613115,1717610849396,-362.2961824,0.0002985,2]
[328613116,1717610863317,190.0,0.00033656,30]
[328613117,1717610864609,192.0,0.00033656,30]
[328613124,1717610966365,1000.0,0.00033656,30]
[328613125,1717610966587,949.28572009,0.00033656,30]
[328613126,1717611016841,205.12,0.00024384,2]
[328613127,1717611032054,-744.80183383,0.00028498,2]
[328613128,1717611032180,-1265.7992198,0.00028498,2]
[328613129,1717611032192,-30.15943709,0.00029021,2]
[328613130,1717611032204,-424.64547838,0.00029021,2]
[328613131,1717611032215,-804.43551989,0.00029021,2]
[328613132,1717611032226,-3740.75956464,0.00029021,2]
[328613133,1717611032238,-5000.0,0.00029022,2]
[328613134,1717611032249,-10000.0,0.00029051,2]
[328613135,1717611032260,-5000.0,0.00029162,2]
[328613136,1717611032272,-5000.0,0.00029232,2]
[328613137,1717611032282,-5000.0,0.00029329,2]
[328613138,1717611032291,-3547.42486901,0.00029444,2]
[328613139,1717611032302,-1452.57513099,0.00029444,2]
[328613140,1717611032311,-327.39805379,0.000295,3]
[328613141,1717611032320,-719.35983224,0.000295,2]
[328613142,1717611032342,-287.08016776,0.000295,2]
[328613143,1717611032351,-724.19324185,0.000295,2]
[328613144,1717611032364,-282.24675815,0.000295,2]
[328613145,1717611032374,-2861.82578279,0.00029548,2]
[328613146,1717611032386,-2138.17421721,0.00029548,2]
[328613147,1717611032395,-933.74578182,0.00029592,2]
[328613148,1717611032408,-540.396828,0.00029592,2]
[328613149,1717611032419,-399.20391486,0.00029592,2]
[328613150,1717611032431,-962.39347532,0.00029592,2]
[328613151,1717611032440,-976.45837188,0.00029603,2]
[328613153,1717611032451,-286.18192272,0.00029603,2]
[328613155,1717611032463,-3737.3597054,0.00029603,2]
[328613157,1717611032471,-5000.0,0.00029658,2]
[328613159,1717611032481,-509.43,0.00029692,2]
[328613161,1717611032490,-11653.58057379,0.00029699,2]
[328613164,1717611032500,-5000.0,0.00029791,2]
[328613166,1717611032509,-5000.0,0.00029794,2]
[328613168,1717611032520,-17942.95844697,0.00029799,2]
[328613170,1717611032532,-434.33736611,0.00029799,2]
[328613172,1717611032542,-621.28822806,0.00029799,2]
[328613174,1717611032554,-1195.53907704,0.00029799,2]
[328613176,1717611032565,-334.50747262,0.00029799,2]
[328613179,1717611032582,-4698.92261733,0.00029799,2]
[328613244,1717611038046,-2856.33689187,0.00029799,2]
[328613245,1717611038055,-2100.0,0.00029799,2]
[328613246,1717611038064,-180.04536271,0.000298,15]
[328613247,1717611038073,-155.0,0.00029807,2]
[328613248,1717611038082,-213.78,0.00029808,30]
[328613249,1717611038092,-180.04536269,0.00029833,15]
[328613250,1717611038102,-3055.29237973,0.00029839,2]
[328613251,1717611038168,-6944.70762027,0.00029839,2]
[328613252,1717611038180,-156.02353408,0.00029858,2]
[328613253,1717611038189,-21.80361489,0.00029858,2]
[328613254,1717611038200,-1253.3797428,0.00029858,2]
[328613255,1717611038209,-180.04536269,0.00029867,15]
[328613256,1717611038219,-300.0,0.00029872,2]
[328613257,1717611038229,-1268.79375449,0.00029883,2]
[328613258,1717611038242,-1736.47030892,0.00029883,2]
[328613259,1717611038285,-1994.73593659,0.00029883,2]
[328613260,1717611038296,-161.25,0.00029889,2]
[328613261,1717611038306,-4467.09,0.00029889,2]
[328613262,1717611038316,-4467.09,0.00029889,2]
[328613263,1717611038326,-4000.0,0.00029899,2]
[328613264,1717611038336,-480.83406341,0.00029899,2]
[328613265,1717611038410,-528.53638494,0.00029899,2]
[328613266,1717611038957,-4e-08,0.00029899,2]
[328613267,1717611039074,-2990.62955161,0.00029899,2]
[328613268,1717611039084,-22.56059087,0.00029899,4]
[328613272,1717611039287,-1e-08,0.00029899,4]
[328613274,1717611039298,-19007.66189659,0.00029899,4]
[328613283,1717611041604,-20593.36167537,0.00029899,4]
[328613284,1717611041616,-19318.51636225,0.00029899,4]
[328613285,1717611041709,-869.46992944,0.00029899,4]
[328613286,1717611041720,-450.5592435,0.00029899,4]
[328613287,1717611041732,-2112.00403341,0.00029899,4]
[328613288,1717611041743,-10678.8012,0.00029899,4]
[328613289,1717611041755,-46565.29684,0.00029899,4]
[328613308,1717611043334,-0.00986852,0.00028498,2]
[328613309,1717611043392,-1585.31781982,0.00028498,2]
[328613310,1717611043509,-425.27336529,0.00028498,2]
[328613311,1717611043518,-6343.30142547,0.00029899,4]
[328613312,1717611043533,-3962.85067637,0.00029899,4]
[328613313,1717611043545,-54982.5833261,0.00029899,4]
[328613314,1717611043554,-486.94805765,0.00029899,2]
[328613315,1717611043563,-500.0,0.00029899,2]
[328613316,1717611043572,-500.0,0.00029899,2]
[328613317,1717611043581,-500.0,0.00029899,2]
[328613318,1717611043594,-500.0,0.00029899,2]
[328613319,1717611043602,-500.0,0.00029899,2]
[328613320,1717611043612,-500.0,0.00029899,2]
[328613321,1717611043621,-500.0,0.00029899,2]
[328613322,1717611043631,-500.0,0.00029899,2]
[328613324,1717611043640,-500.0,0.00029899,2]
[328613326,1717611043650,-500.0,0.00029899,2]
[328613327,1717611043659,-500.0,0.00029899,2]
[328613328,1717611043671,-500.0,0.00029899,2]
[328613329,1717611043680,-500.0,0.00029899,2]
[328613330,1717611043689,-500.0,0.00029899,2]
[328613331,1717611043698,-500.0,0.00029899,2]
[328613332,1717611043707,-500.0,0.00029899,2]
[328613333,1717611043718,-500.0,0.00029899,2]
[328613334,1717611043727,-500.0,0.00029899,2]
[328613335,1717611043736,-500.0,0.00029899,2]
[328613336,1717611043748,-500.0,0.00029899,2]
[328613337,1717611043759,-500.0,0.00029899,2]
[328613338,1717611043768,-500.0,0.00029899,2]
[328613339,1717611043781,-500.0,0.00029899,2]
[328613340,1717611043791,-500.0,0.00029899,2]
[328613341,1717611043802,-500.0,0.00029899,2]
[328613342,1717611043812,-500.0,0.00029899,2]
[328613343,1717611043822,-500.0,0.00029899,2]
[328613344,1717611043831,-500.0,0.00029899,2]
[328613346,1717611043841,-500.0,0.00029899,2]
[328613348,1717611043851,-500.0,0.00029899,2]
[328613350,1717611043859,-500.0,0.00029899,2]
[328613352,1717611043868,-500.0,0.00029899,2]
[328613354,1717611043877,-500.0,0.00029899,2]
[328613355,1717611043887,-500.0,0.00029899,2]
[328613357,1717611043897,-500.0,0.00029899,2]
[328613359,1717611043907,-500.0,0.00029899,2]
[328613362,1717611043916,-500.0,0.00029899,2]
[328613364,1717611043925,-500.0,0.00029899,2]
[328613366,1717611043934,-500.0,0.00029899,2]
[328613368,1717611043942,-168.2457248,0.000299,2]
[328613370,1717611043951,-5800.0,0.000299,2]
[328613372,1717611043961,-193.94339613,0.000299,2]
[328613374,1717611043971,-452.08014,0.000299,2]
[328613376,1717611043980,-7500.0,0.000299,2]
[328613377,1717611043989,-180.04536269,0.000299,15]
[328613378,1717611043998,-445.00439084,0.000299,2]
[328613379,1717611044007,-300.0,0.0002993,2]
[328613380,1717611044016,-308.42597073,0.00029938,2]
[328613381,1717611044026,-4467.09,0.00029939,2]
[328613382,1717611044035,-25000.0,0.00029949,2]
[328613383,1717611044044,-155.14292392,0.0002999,2]
[328613384,1717611044053,-4467.09,0.0002999,2]
[328613385,1717611044062,-4467.09,0.0002999,2]